[Event "Masters Tournament (MTO)"]
[Site "Biel, Switzerland"]
[Date "2026.07.13"]
[Round "1.17"]
[White "Balabayeva, Xeniya"]
[Black "Arndt, Uwe"]
[Result "1-0"]
[TimeControl "100+30+30sec/move"]
[WhiteTitle "-"]
[BlackTitle "-"]
[WhiteFideId "13719688"]
[BlackFideId "24647713"]
[WhiteElo "2302"]
[BlackElo "2005"]

1. d4 {[%clk 01:40:59]} {[%emt 00:00:03]} d5 {[%clk 01:40:51]} {[%emt
00:00:07]} 2. c4 {[%clk 01:41:20]} {[%emt 00:00:10]} e6 {[%clk 01:41:15]}
{[%emt 00:00:06]} 3. Nc3 {[%clk 01:41:44]} {[%emt 00:00:06]} c6 {[%clk
01:41:31]} {[%emt 00:00:14]} 4. Nf3 {[%clk 01:41:05]} {[%emt 00:01:08]} Nf6
{[%clk 01:40:59]} {[%emt 00:01:02]} 5. Qd3 {[%clk 01:40:26]} {[%emt 00:01:09]}
dxc4 {[%clk 01:38:57]} {[%emt 00:02:32]} 6. Qxc4 {[%clk 01:40:50]} {[%emt
00:00:06]} b5 {[%clk 01:37:11]} {[%emt 00:02:16]} 7. Qd3 {[%clk 01:41:07]}
{[%emt 00:00:12]} Bb7 {[%clk 01:35:59]} {[%emt 00:01:42]} 8. Bg5 {[%clk
01:29:32]} {[%emt 00:12:06]} h6 {[%clk 01:32:27]} {[%emt 00:04:02]} 9. Bxf6
{[%clk 01:25:41]} {[%emt 00:04:22]} Qxf6 {[%clk 01:32:33]} {[%emt 00:00:23]} 10.
g3 {[%clk 01:25:15]} {[%emt 00:00:55]} a6 {[%clk 01:29:23]} {[%emt 00:03:41]}
11. Bg2 {[%clk 01:24:09]} {[%emt 00:01:36]} Nd7 {[%clk 01:29:33]} {[%emt
00:00:20]} 12. Rc1 {[%clk 01:21:07]} {[%emt 00:03:32]} Bb4 {[%clk 01:26:36]}
{[%emt 00:03:27]} 13. O-O {[%clk 01:17:51]} {[%emt 00:03:46]} Bxc3 {[%clk
01:20:37]} {[%emt 00:06:29]} 14. Qxc3 {[%clk 01:06:55]} {[%emt 00:11:26]} Rc8
{[%clk 01:15:31]} {[%emt 00:05:37]} 15. Nd2 {[%clk 01:05:07]} {[%emt 00:02:16]}
Qe7 {[%clk 01:13:26]} {[%emt 00:02:36]} 16. Nb3 {[%clk 01:02:23]} {[%emt
00:03:14]} b4 {[%clk 01:10:07]} {[%emt 00:03:49]} 17. Qd2 {[%clk 00:58:57]}
{[%emt 00:03:56]} Ba8 {[%clk 01:08:11]} {[%emt 00:02:26]} 18. Rc4 {[%clk
00:55:52]} {[%emt 00:03:35]} c5 {[%clk 01:06:36]} {[%emt 00:02:05]} 19. Bxa8
{[%clk 00:55:06]} {[%emt 00:01:16]} Rxa8 {[%clk 01:06:18]} {[%emt 00:00:48]} 20.
dxc5 {[%clk 00:55:03]} {[%emt 00:00:34]} a5 {[%clk 01:06:36]} {[%emt 00:00:11]}
21. Rd1 {[%clk 00:52:37]} {[%emt 00:02:56]} Ne5 {[%clk 01:05:19]} {[%emt
00:01:47]} 22. Rcc1 {[%clk 00:52:04]} {[%emt 00:01:03]} Nc6 {[%clk 01:04:21]}
{[%emt 00:01:27]} 23. Qd6 {[%clk 00:50:17]} {[%emt 00:02:18]} Rc8 {[%clk
01:03:48]} {[%emt 00:01:03]} 24. Nd4 {[%clk 00:37:42]} {[%emt 00:13:05]} Qxd6
{[%clk 01:03:02]} {[%emt 00:01:16]} 25. cxd6 {[%clk 00:38:05]} {[%emt
00:00:07]} Kd7 {[%clk 01:03:14]} {[%emt 00:00:18]} 26. Nb3 {[%clk 00:37:55]}
{[%emt 00:00:41]} Ne5 {[%clk 00:57:12]} {[%emt 00:06:32]} 27. Nc5+ {[%clk
00:37:20]} {[%emt 00:01:05]} Kd8 {[%clk 00:57:17]} {[%emt 00:00:24]} 28. f4
{[%clk 00:32:08]} {[%emt 00:05:41]} Nc6 {[%clk 00:56:50]} {[%emt 00:00:58]} 29.
e4 {[%clk 00:31:24]} {[%emt 00:01:15]} e5 {[%clk 00:56:44]} {[%emt 00:00:35]}
30. Rd5 {[%clk 00:30:20]} {[%emt 00:01:34]} exf4 {[%clk 00:53:33]} {[%emt
00:03:41]} 31. gxf4 {[%clk 00:30:37]} {[%emt 00:00:13]} f6 {[%clk 00:53:44]}
{[%emt 00:00:19]} 32. d7 {[%clk 00:30:43]} {[%emt 00:00:24]} 1-0

[Event "Masters Tournament (MTO)"]
[Site "Biel, Switzerland"]
[Date "2026.07.13"]
[Round "1.18"]
[White "Petry, Martin"]
[Black "Arsenie, Cristian Marc"]
[Result "0-1"]
[TimeControl "100+30+30sec/move"]
[WhiteTitle "-"]
[BlackTitle "-"]
[WhiteFideId "1352318"]
[BlackFideId "1345923"]
[WhiteElo "1999"]
[BlackElo "2300"]

1. Nf3 {[%clk 01:40:58]} {[%emt 00:00:05]} Nf6 {[%clk 01:40:53]} {[%emt
00:00:05]} 2. g3 {[%clk 01:41:21]} {[%emt 00:00:06]} c5 {[%clk 01:41:19]}
{[%emt 00:00:05]} 3. Bg2 {[%clk 01:41:45]} {[%emt 00:00:06]} Nc6 {[%clk
01:41:44]} {[%emt 00:00:05]} 4. d4 {[%clk 01:42:06]} {[%emt 00:00:09]} cxd4
{[%clk 01:42:08]} {[%emt 00:00:06]} 5. Nxd4 {[%clk 01:42:27]} {[%emt 00:00:09]}
e5 {[%clk 01:42:34]} {[%emt 00:00:04]} 6. Nxc6 {[%clk 01:42:42]} {[%emt
00:00:15]} dxc6 {[%clk 01:42:59]} {[%emt 00:00:04]} 7. Qxd8+ {[%clk 01:41:02]}
{[%emt 00:02:10]} Kxd8 {[%clk 01:43:16]} {[%emt 00:00:14]} 8. Nc3 {[%clk
01:37:52]} {[%emt 00:03:41]} Kc7 {[%clk 01:38:01]} {[%emt 00:05:44]} 9. a3
{[%clk 01:18:45]} {[%emt 00:19:37]} Bd6 {[%clk 01:32:39]} {[%emt 00:05:51]} 10.
h3 {[%clk 01:16:05]} {[%emt 00:03:10]} h6 {[%clk 01:29:47]} {[%emt 00:03:21]}
11. Be3 {[%clk 01:10:55]} {[%emt 00:05:41]} Bf5 {[%clk 01:25:48]} {[%emt
00:04:29]} 12. O-O-O {[%clk 01:07:20]} {[%emt 00:04:06]} Rhe8 {[%clk 01:19:34]}
{[%emt 00:06:43]} 13. Rd2 {[%clk 00:57:44]} {[%emt 00:10:06]} e4 {[%clk
01:16:00]} {[%emt 00:04:05]} 14. g4 {[%clk 00:43:02]} {[%emt 00:15:12]} Bg6
{[%emt 00:04:20]} 15. Rhd1 {[%clk 00:40:34]} Be5 {[%clk 01:13:35]} {[%emt
00:02:03]} 16. Bd4 {[%clk 00:39:52]} {[%emt 00:01:12]} Bf4 {[%clk 01:07:43]}
{[%emt 00:06:22]} 17. e3 {[%clk 00:39:43]} {[%emt 00:00:38]} Be5 {[%clk
01:08:07]} {[%emt 00:00:07]} 18. Bxe5+ {[%clk 00:16:02]} {[%emt 00:24:11]} Rxe5
{[%clk 01:08:01]} {[%emt 00:00:36]} 19. h4 {[%clk 00:16:29]} {[%emt 00:00:02]}
Rae8 {[%clk 01:03:59]} {[%emt 00:04:33]} 20. Bh3 {[%clk 00:16:00]} {[%emt
00:00:58]} Bh7 {[%clk 01:01:18]} {[%emt 00:03:11]} 21. b4 {[%clk 00:12:10]}
{[%emt 00:04:21]} g5 {[%clk 00:59:25]} {[%emt 00:02:24]} 22. h5 {[%clk
00:12:16]} {[%emt 00:00:23]} R8e7 {[%clk 00:54:40]} {[%emt 00:05:15]} 23. Kb2
{[%clk 00:10:40]} {[%emt 00:02:06]} Nd7 {[%clk 00:53:45]} {[%emt 00:01:25]} 24.
Rd6 {[%clk 00:10:27]} {[%emt 00:00:41]} R5e6 {[%clk 00:52:37]} {[%emt
00:01:40]} 25. R6d2 {[%clk 00:10:50]} {[%emt 00:00:07]} Ne5 {[%clk 00:47:49]}
{[%emt 00:05:17]} 26. Kb3 {[%clk 00:11:11]} {[%emt 00:00:10]} Rd7 {[%clk
00:44:33]} {[%emt 00:03:46]} 27. Rxd7+ {[%clk 00:07:23]} {[%emt 00:04:18]} Nxd7
{[%clk 00:44:58]} {[%emt 00:00:05]} 28. Rd4 {[%clk 00:07:15]} {[%emt 00:00:37]}
Ne5 {[%clk 00:43:29]} {[%emt 00:02:00]} 29. Bg2 {[%clk 00:02:02]} {[%emt
00:05:42]} Nxg4 {[%clk 00:42:51]} {[%emt 00:01:08]} 30. Bxe4 {[%clk 00:02:07]}
{[%emt 00:00:26]} f5 {[%clk 00:40:57]} {[%emt 00:02:24]} 31. Bd3 {[%clk
00:01:29]} {[%emt 00:01:09]} Nxf2 {[%clk 00:41:08]} {[%emt 00:00:18]} 32. Bc4
{[%clk 00:01:39]} {[%emt 00:00:19]} Re5 {[%emt 00:01:22]} 33. e4 Rxe4 {[%clk
00:40:16]} 34. Nd1 {[%clk 00:01:15]} {[%emt 00:00:54]} Re3+ {[%clk 00:40:14]}
35. Nc3 {[%emt 00:00:05]} 0-1

[Event "Masters Tournament (MTO)"]
[Site "Biel, Switzerland"]
[Date "2026.07.13"]
[Round "1.19"]
[White "Pleschke, Julius Jonas"]
[Black "Oestmann, Lukas"]
[Result "1-0"]
[TimeControl "100+30+30sec/move"]
[WhiteTitle "-"]
[BlackTitle "-"]
[WhiteFideId "54734258"]
[BlackFideId "1326457"]
[WhiteElo "2280"]
[BlackElo "1998"]

1. d4 {[%clk 01:40:46]} {[%emt 00:00:12]} Nf6 {[%clk 01:40:49]} {[%emt
00:00:13]} 2. c4 {[%clk 01:41:05]} {[%emt 00:00:10]} c5 {[%clk 01:41:09]}
{[%emt 00:00:11]} 3. d5 {[%clk 01:41:12]} {[%emt 00:00:22]} e6 {[%clk
01:41:36]} {[%emt 00:00:03]} 4. Nc3 {[%clk 01:40:35]} {[%emt 00:01:07]} exd5
{[%clk 01:42:04]} {[%emt 00:00:03]} 5. cxd5 {[%clk 01:40:54]} {[%emt 00:00:10]}
d6 {[%clk 01:42:30]} {[%emt 00:00:04]} 6. Nf3 {[%clk 01:40:54]} {[%emt
00:00:28]} g6 {[%clk 01:42:57]} {[%emt 00:00:05]} 7. Bg5 {[%clk 01:40:20]}
{[%emt 00:01:03]} h6 {[%clk 01:43:07]} {[%emt 00:00:21]} 8. Bh4 {[%clk
01:40:33]} {[%emt 00:00:16]} g5 {[%clk 01:43:32]} {[%emt 00:00:07]} 9. Bg3
{[%clk 01:40:58]} {[%emt 00:00:04]} a6 {[%clk 01:42:42]} {[%emt 00:01:20]} 10.
a4 {[%clk 01:40:30]} {[%emt 00:00:58]} Nh5 {[%clk 01:43:02]} {[%emt 00:00:11]}
11. e3 {[%clk 01:39:40]} {[%emt 00:01:19]} Nxg3 {[%clk 01:42:46]} {[%emt
00:00:47]} 12. hxg3 {[%clk 01:40:08]} Bg7 {[%clk 01:42:31]} {[%emt 00:00:45]}
13. Bd3 {[%clk 01:36:24]} {[%emt 00:04:13]} Nd7 {[%clk 01:40:14]} {[%emt
00:02:48]} 14. Nd2 {[%clk 01:25:30]} {[%emt 00:11:24]} Ne5 {[%clk 01:36:56]}
{[%emt 00:03:48]} 15. Be2 {[%clk 01:20:48]} {[%emt 00:05:11]} O-O {[%clk
01:27:19]} {[%emt 00:10:07]} 16. f4 {[%clk 01:18:13]} {[%emt 00:03:05]} Ng6
{[%clk 01:27:14]} {[%emt 00:00:35]} 17. Kf2 {[%clk 01:16:29]} {[%emt 00:02:14]}
Re8 {[%clk 01:21:57]} {[%emt 00:05:48]} 18. Nc4 {[%clk 01:07:10]} {[%emt
00:09:48]} Qf6 {[%clk 01:16:32]} {[%emt 00:05:56]} 19. Qd2 {[%clk 00:55:22]}
{[%emt 00:12:18]} gxf4 {[%clk 01:08:58]} {[%emt 00:08:05]} 20. gxf4 {[%clk
00:54:36]} {[%emt 00:01:15]} Bf5 {[%clk 00:57:45]} {[%emt 00:11:43]} 21. Rae1
{[%clk 00:52:24]} {[%emt 00:02:41]} Be4 {[%clk 00:52:10]} {[%emt 00:06:07]} 22.
Bf3 {[%clk 00:45:40]} {[%emt 00:07:13]} Bxf3 {[%clk 00:44:27]} {[%emt
00:08:13]} 23. gxf3 {[%clk 00:46:08]} {[%emt 00:00:02]} Rad8 {[%clk 00:42:17]}
{[%emt 00:02:41]} 24. Ne4 {[%clk 00:42:55]} {[%emt 00:03:41]} Qe7 {[%clk
00:42:05]} {[%emt 00:00:43]} 25. Reg1 {[%clk 00:40:55]} {[%emt 00:02:27]} b5
{[%clk 00:36:20]} {[%emt 00:06:18]} 26. Na5 {[%clk 00:40:17]} {[%emt 00:01:07]}
Qd7 {[%clk 00:32:21]} {[%emt 00:04:30]} 27. Nc6 {[%clk 00:39:52]} {[%emt
00:00:56]} Rc8 {[%clk 00:30:55]} {[%emt 00:01:55]} 28. Rh5 {[%clk 00:39:31]}
{[%emt 00:00:50]} f5 {[%clk 00:26:19]} {[%emt 00:05:06]} 29. Rxh6 {[%clk
00:38:31]} {[%emt 00:01:30]} 1-0

[Event "Masters Tournament (MTO)"]
[Site "Biel, Switzerland"]
[Date "2026.07.13"]
[Round "1.20"]
[White "Malli, Shiivesh Sunil"]
[Black "Ashwath, Kaushik"]
[Result "0-1"]
[TimeControl "100+30+30sec/move"]
[WhiteTitle "-"]
[BlackTitle "-"]
[WhiteFideId "1340409"]
[BlackFideId "33387230"]
[WhiteElo "1994"]
[BlackElo "2278"]

1. c4 {[%clk 01:40:57]} {[%emt 00:00:04]} e5 {[%clk 01:40:49]} {[%emt
00:00:11]} 2. Nc3 {[%clk 01:41:20]} {[%emt 00:00:07]} Nf6 {[%clk 01:41:13]}
{[%emt 00:00:07]} 3. g3 {[%clk 01:41:46]} {[%emt 00:00:04]} Bc5 {[%clk
01:41:26]} {[%emt 00:00:17]} 4. Bg2 {[%clk 01:42:09]} {[%emt 00:00:06]} c6
{[%clk 01:41:51]} {[%emt 00:00:06]} 5. e4 {[%clk 01:41:22]} {[%emt 00:01:16]}
h5 {[%clk 01:31:18]} {[%emt 00:11:02]} 6. h3 {[%clk 01:41:11]} {[%emt
00:00:41]} a5 {[%clk 01:22:38]} {[%emt 00:09:10]} 7. Nge2 {[%clk 01:40:13]}
{[%emt 00:01:29]} d6 {[%clk 01:20:40]} {[%emt 00:02:28]} 8. d3 {[%clk
01:35:40]} {[%emt 00:05:02]} Na6 {[%clk 01:16:09]} {[%emt 00:05:02]} 9. a3
{[%clk 01:31:08]} {[%emt 00:05:02]} Rb8 {[%clk 01:09:34]} {[%emt 00:07:05]} 10.
Bg5 {[%clk 01:23:27]} {[%emt 00:08:09]} Nc7 {[%clk 01:07:55]} {[%emt 00:02:11]}
11. Rb1 {[%clk 01:16:50]} {[%emt 00:07:06]} Ne6 {[%clk 01:03:37]} {[%emt
00:04:49]} 12. Bd2 {[%clk 01:16:42]} {[%emt 00:00:37]} Bb6 {[%clk 00:52:25]}
{[%emt 00:11:43]} 13. b4 {[%clk 01:15:18]} {[%emt 00:01:54]} axb4 {[%clk
00:51:17]} {[%emt 00:01:38]} 14. axb4 {[%clk 01:15:33]} {[%emt 00:00:15]} g5
{[%clk 00:47:32]} {[%emt 00:04:15]} 15. Qc1 {[%clk 01:12:24]} {[%emt 00:03:37]}
h4 {[%clk 00:46:15]} {[%emt 00:01:48]} 16. Be3 {[%clk 01:10:05]} {[%emt
00:02:49]} Bxe3 {[%clk 00:39:49]} {[%emt 00:06:56]} 17. Qxe3 {[%clk 01:09:06]}
{[%emt 00:01:29]} Ra8 {[%clk 00:31:24]} {[%emt 00:08:56]} 18. d4 {[%clk
00:51:45]} {[%emt 00:17:51]} exd4 {[%clk 00:24:09]} {[%emt 00:07:45]} 19. Nxd4
{[%clk 00:51:29]} {[%emt 00:00:45]} Nxd4 {[%clk 00:22:11]} {[%emt 00:02:29]} 20.
Qxd4 {[%clk 00:51:39]} {[%emt 00:00:19]} Qe7 {[%clk 00:20:24]} {[%emt
00:02:17]} 21. g4 {[%clk 00:47:49]} {[%emt 00:04:20]} Qe5 {[%clk 00:19:32]}
{[%emt 00:01:22]} 22. Qxe5+ {[%clk 00:46:54]} {[%emt 00:01:25]} dxe5 {[%clk
00:19:56]} {[%emt 00:00:07]} 23. O-O {[%clk 00:46:20]} {[%emt 00:01:03]} Ra3
{[%clk 00:17:28]} {[%emt 00:02:59]} 24. Nd1 {[%clk 00:45:34]} {[%emt 00:01:16]}
Be6 {[%clk 00:14:25]} {[%emt 00:03:34]} 25. Ne3 {[%clk 00:45:29]} {[%emt
00:00:34]} O-O {[%clk 00:13:22]} {[%emt 00:01:32]} 26. b5 {[%clk 00:44:33]}
{[%emt 00:01:27]} c5 {[%clk 00:10:26]} {[%emt 00:03:27]} 27. Ra1 {[%clk
00:42:58]} {[%emt 00:02:03]} Rfa8 {[%clk 00:08:43]} {[%emt 00:02:14]} 28. Rxa3
{[%clk 00:42:26]} {[%emt 00:01:01]} Rxa3 {[%clk 00:09:08]} {[%emt 00:00:06]} 29.
Nd5 {[%clk 00:41:15]} {[%emt 00:01:41]} Bxd5 {[%clk 00:09:01]} {[%emt
00:00:38]} 30. exd5 {[%clk 00:41:32]} {[%emt 00:00:12]} Ra4 {[%clk 00:02:48]}
{[%emt 00:06:44]} 31. Re1 {[%clk 00:40:54]} {[%emt 00:01:05]} e4 {[%clk
00:02:15]} {[%emt 00:01:05]} 32. Bf1 {[%clk 00:39:34]} {[%emt 00:01:48]} Ra2
{[%clk 00:01:29]} {[%emt 00:01:18]} 33. Bg2 {[%clk 00:38:01]} {[%emt 00:02:03]}
Rc2 {[%clk 00:01:20]} {[%emt 00:00:40]} 34. Bf1 {[%clk 00:36:25]} {[%emt
00:02:04]} Ra2 {[%clk 00:00:51]} {[%emt 00:01:00]} 35. Bg2 {[%clk 00:34:48]}
{[%emt 00:02:06]} Rc2 {[%clk 00:01:14]} {[%emt 00:00:08]} 36. Bf1 {[%clk
00:34:09]} {[%emt 00:01:08]} Kf8 {[%clk 00:01:15]} {[%emt 00:00:30]} 37. Re3
{[%clk 00:32:01]} {[%emt 00:02:37]} Rc1 {[%clk 00:00:35]} {[%emt 00:01:12]} 38.
Kg2 {[%clk 00:30:57]} {[%emt 00:01:33]} Rc2 {[%clk 00:01:00]} {[%emt 00:00:05]}
39. Re1 {[%clk 00:29:11]} {[%emt 00:02:15]} Rd2 {[%clk 00:00:54]} {[%emt
00:00:36]} 40. Kg1 {[%clk 00:28:30]} {[%emt 00:01:11]} Ke7 {[%clk 00:00:34]}
{[%emt 00:00:51]} 41. Ra1 {[%clk 00:26:42]} {[%emt 00:02:17]} Ne8 {[%clk
00:23:20]} {[%emt 00:08:15]} 42. Re1 {[%clk 00:55:22]} {[%emt 00:01:50]} Nd6
{[%clk 00:19:48]} {[%emt 00:04:04]} 43. f3 {[%clk 00:54:34]} {[%emt 00:01:16]}
Kf6 {[%clk 00:12:18]} {[%emt 00:08:01]} 44. fxe4 {[%clk 00:54:31]} {[%emt
00:00:33]} Ke5 {[%clk 00:12:37]} {[%emt 00:00:09]} 45. Re3 {[%clk 00:49:08]}
{[%emt 00:05:50]} f6 {[%clk 00:06:31]} {[%emt 00:06:40]} 46. Re1 {[%clk
00:42:26]} {[%emt 00:07:10]} Kd4 {[%clk 00:04:38]} {[%emt 00:02:25]} 47. Rc1
{[%clk 00:37:32]} {[%emt 00:05:24]} Nxe4 {[%clk 00:04:09]} {[%emt 00:01:00]} 48.
Bg2 {[%clk 00:36:59]} {[%emt 00:01:03]} Nc3 {[%clk 00:02:49]} {[%emt 00:01:49]}
49. Bf1 {[%clk 00:36:00]} {[%emt 00:01:26]} Ne4 {[%clk 00:02:44]} {[%emt
00:00:39]} 50. Bg2 {[%clk 00:36:08]} {[%emt 00:00:21]} Nd6 {[%clk 00:02:09]}
{[%emt 00:01:06]} 51. Bf1 {[%clk 00:36:06]} {[%emt 00:00:30]} f5 {[%clk
00:01:38]} {[%emt 00:01:03]} 52. gxf5 {[%clk 00:35:25]} {[%emt 00:01:11]} Nxf5
{[%clk 00:01:39]} {[%emt 00:00:28]} 53. Re1 {[%clk 00:32:14]} {[%emt 00:03:38]}
Ne3 {[%clk 00:01:18]} {[%emt 00:00:54]} 54. Rc1 {[%clk 00:31:48]} {[%emt
00:00:57]} b6 {[%clk 00:01:21]} {[%emt 00:00:27]} 55. d6 {[%clk 00:31:00]}
{[%emt 00:01:17]} Ke4 {[%clk 00:01:17]} {[%emt 00:00:35]} 56. Re1 {[%clk
00:30:37]} {[%emt 00:00:51]} Rxd6 {[%clk 00:01:23]} {[%emt 00:00:26]} 57. Bg2+
{[%clk 00:28:55]} {[%emt 00:02:11]} Kf4 {[%clk 00:01:37]} {[%emt 00:00:17]} 58.
Bd5 {[%clk 00:28:54]} {[%emt 00:00:30]} Nxd5 {[%clk 00:01:42]} {[%emt
00:00:25]} 59. cxd5 {[%clk 00:29:10]} {[%emt 00:00:14]} Rxd5 {[%clk 00:01:58]}
{[%emt 00:00:15]} 60. Re6 {[%clk 00:29:34]} {[%emt 00:00:06]} c4 {[%clk
00:02:08]} {[%emt 00:00:20]} 61. Rxb6 {[%clk 00:29:33]} {[%emt 00:00:31]} Kg3
{[%clk 00:02:14]} {[%emt 00:00:24]} 62. Kf1 {[%clk 00:29:48]} {[%emt 00:00:14]}
Kxh3 {[%clk 00:02:32]} {[%emt 00:00:11]} 63. Rc6 {[%clk 00:28:31]} {[%emt
00:01:48]} Rxb5 {[%clk 00:02:52]} {[%emt 00:00:10]} 64. Rxc4 {[%clk 00:28:51]}
{[%emt 00:00:10]} Rb1+ {[%clk 00:03:19]} {[%emt 00:00:03]} 65. Kf2 {[%clk
00:29:11]} {[%emt 00:00:11]} Rb2+ {[%clk 00:03:38]} {[%emt 00:00:11]} 66. Kf1
{[%clk 00:29:29]} {[%emt 00:00:11]} g4 {[%clk 00:03:52]} {[%emt 00:00:17]} 67.
Kg1 {[%clk 00:29:25]} {[%emt 00:00:34]} Rb1+ {[%clk 00:04:11]} {[%emt
00:00:11]} 68. Kf2 {[%clk 00:29:51]} {[%emt 00:00:03]} g3+ {[%clk 00:04:37]}
{[%emt 00:00:06]} 69. Kf3 {[%clk 00:29:58]} {[%emt 00:00:21]} Rf1+ {[%clk
00:04:53]} {[%emt 00:00:14]} 70. Ke2 {[%clk 00:30:21]} {[%emt 00:00:07]} g2
{[%clk 00:05:00]} {[%emt 00:00:23]} 0-1

[Event "Masters Tournament (MTO)"]
[Site "Biel, Switzerland"]
[Date "2026.07.13"]
[Round "1.21"]
[White "Cherniaev, Alexander"]
[Black "Di Candia, Roberto"]
[Result "1-0"]
[TimeControl "100+30+30sec/move"]
[WhiteTitle "-"]
[BlackTitle "-"]
[WhiteFideId "4117301"]
[BlackFideId "856649"]
[WhiteElo "2275"]
[BlackElo "1988"]

1. e4 {[%clk 01:40:57]} {[%emt 00:00:05]} e5 {[%clk 01:40:53]} {[%emt
00:00:07]} 2. Nc3 {[%clk 01:40:09]} {[%emt 00:01:16]} Nf6 {[%clk 01:41:08]}
{[%emt 00:00:14]} 3. f4 {[%clk 01:40:31]} {[%emt 00:00:09]} d5 {[%clk
01:41:24]} {[%emt 00:00:12]} 4. fxe5 {[%clk 01:40:57]} {[%emt 00:00:06]} Nxe4
{[%clk 01:41:47]} {[%emt 00:00:07]} 5. Qf3 {[%clk 01:41:21]} {[%emt 00:00:06]}
f5 {[%clk 01:42:01]} {[%emt 00:00:16]} 6. d3 {[%clk 01:41:46]} {[%emt
00:00:05]} Nxc3 {[%clk 01:42:17]} {[%emt 00:00:14]} 7. bxc3 {[%clk 01:42:14]}
{[%emt 00:00:02]} d4 {[%clk 01:42:24]} {[%emt 00:00:23]} 8. Qg3 {[%clk
01:41:17]} {[%emt 00:01:26]} Be6 {[%clk 01:38:00]} {[%emt 00:04:55]} 9. Be2
{[%clk 01:38:42]} {[%emt 00:03:05]} Nc6 {[%clk 01:35:03]} {[%emt 00:03:27]} 10.
Bf3 {[%clk 01:38:31]} {[%emt 00:00:41]} Qd7 {[%clk 01:34:45]} {[%emt 00:00:47]}
11. Ne2 {[%clk 01:38:41]} {[%emt 00:00:21]} O-O-O {[%clk 01:33:37]} {[%emt
00:01:38]} 12. c4 {[%clk 01:32:29]} {[%emt 00:06:42]} Bc5 {[%clk 01:32:35]}
{[%emt 00:01:31]} 13. Rb1 {[%clk 01:30:16]} {[%emt 00:02:44]} b6 {[%clk
01:32:47]} {[%emt 00:00:17]} 14. Kd1 {[%clk 01:20:33]} {[%emt 00:10:13]} Rde8
{[%clk 01:15:17]} {[%emt 00:18:01]} 15. Re1 {[%clk 01:18:57]} {[%emt 00:02:06]}
g5 {[%clk 00:54:48]} {[%emt 00:20:59]} 16. Bxg5 {[%clk 01:14:44]} {[%emt
00:04:43]} Rhg8 {[%clk 00:54:47]} {[%emt 00:00:31]} 17. Qf4 {[%clk 01:01:40]}
{[%emt 00:13:34]} Nb4 {[%clk 00:49:19]} {[%emt 00:05:57]} 18. Nc1 {[%clk
00:54:13]} {[%emt 00:07:57]} Qa4 {[%clk 00:44:43]} {[%emt 00:05:06]} 19. Rb2
{[%clk 00:52:35]} {[%emt 00:02:08]} Bxc4 {[%clk 00:31:50]} {[%emt 00:13:23]} 20.
dxc4 {[%clk 00:38:41]} {[%emt 00:14:24]} d3 {[%clk 00:31:37]} {[%emt 00:00:44]}
21. Qxf5+ {[%clk 00:38:53]} {[%emt 00:00:18]} Kb8 {[%clk 00:32:01]} {[%emt
00:00:06]} 22. Nxd3 {[%clk 00:26:01]} {[%emt 00:13:21]} Rxg5 {[%clk 00:26:00]}
{[%emt 00:06:31]} 23. Nxc5 {[%clk 00:25:32]} {[%emt 00:00:59]} Rd8+ {[%clk
00:17:27]} {[%emt 00:09:03]} 24. Ke2 {[%clk 00:25:21]} {[%emt 00:00:42]} 1-0